bitfinex-derivatives/quotes_BTCF0:USTF0_20250127
["timestamp","ask_amount","ask_price","bid_price","bid_amount"]
[1737977989206,0.13721909,99042.0,99032.0,0.3628]
[1737977989397,0.202056,99037.0,99032.0,0.3608]
[1737977989596,0.202057,99036.0,99032.0,0.3618]
[1737977989797,0.202062,99033.0,99032.0,0.3618]
[1737977990004,0.202062,99033.0,99032.0,0.001]
[1737977992106,0.202062,99033.0,99028.0,0.3608]
[1737977992302,0.202062,99033.0,99032.0,0.002]
[1737977993114,0.202046,99041.0,99032.0,0.001]
[1737977993314,0.202062,99033.0,99032.0,0.001]
[1737977995207,0.202062,99033.0,99028.0,0.3608]
[1737977995408,0.202053,99038.0,99032.0,0.001]
[1737977995915,0.202058,99036.0,99032.0,0.001]
[1737977996508,0.001,99033.0,99032.0,0.001]
[1737977998812,0.1209468,99039.0,99032.0,0.001]
[1737977999010,0.3229978,99039.0,99032.0,0.001]
[1737977999209,0.202052,99038.0,99032.0,0.001]
[1737978000018,0.202055,99037.0,99032.0,0.001]
[1737978000317,0.1209468,99040.0,99032.0,0.001]
[1737978000517,0.202062,99034.0,99032.0,0.001]
[1737978001921,0.202062,99033.0,99032.0,0.001]
[1737978002514,0.050514,99037.0,99032.0,0.001]
[1737978002820,0.202062,99033.0,99032.0,0.001]
[1737978003524,0.20207,99029.0,99028.0,0.36212]
[1737978003721,0.20207,99029.0,99028.0,0.3608]
[1737978004617,0.0756,99032.0,99028.0,0.3608]
[1737978004817,0.3608,99040.0,99028.0,0.3608]
[1737978004818,0.202063,99033.0,99028.0,0.3608]
[1737978005120,0.3608,99040.0,99028.0,0.3608]
[1737978005417,0.202068,99030.0,99028.0,0.3608]
[1737978005916,0.20207,99029.0,99028.0,0.3608]
[1737978008226,0.20207,99029.0,99028.0,0.3618]
[1737978008416,0.3608,99040.0,99028.0,0.3618]
[1737978008612,0.1209468,99031.0,99028.0,0.3618]
[1737978008816,0.1209468,99031.0,99030.0,0.202067]
[1737978012226,0.1209468,99031.0,99030.0,0.204067]
[1737978012927,0.1209468,99031.0,99030.0,0.203067]
[1737978013127,0.15083495,99038.0,99030.0,0.203067]
[1737978013128,0.202052,99038.0,99030.0,0.001]
[1737978013321,0.202052,99038.0,99037.0,0.3608]
[1737978013518,0.24547685,99042.0,99038.0,0.20205]
[1737978013828,0.202049,99040.0,99038.0,0.20205]
[1737978014728,0.13316094,99042.0,99039.0,0.20205]
[1737978015629,0.13416094,99042.0,99039.0,0.20205]
[1737978016023,0.13416094,99042.0,99037.0,0.3608]
[1737978016221,0.13416094,99042.0,99041.0,0.202046]
[1737978016527,0.1219468,99042.0,99041.0,0.202046]
[1737978017520,0.1219468,99042.0,99037.0,0.3608]
[1737978017922,0.1219468,99042.0,99040.0,0.202047]
[1737978019226,0.1209468,99042.0,99040.0,0.202047]
[1737978019421,0.1219468,99042.0,99040.0,0.202047]
[1737978021329,0.001,99042.0,99040.0,0.202047]
[1737978021629,0.001,99042.0,99041.0,0.3608]
[1737978023032,0.001,99042.0,99041.0,0.562846]
[1737978024225,0.001,99042.0,99041.0,0.3608]
[1737978025626,0.001,99042.0,99041.0,0.562846]
[1737978026925,0.001,99042.0,99041.0,0.3608]
[1737978027630,0.203044,99042.0,99041.0,0.3608]
[1737978028027,0.203044,99042.0,99039.0,0.3608]
[1737978028028,0.001,99042.0,99039.0,0.3608]
[1737978028232,0.202048,99040.0,99039.0,0.3608]
[1737978032331,0.202064,99032.0,99031.0,0.17929606]
[1737978032530,0.3608,99037.0,99026.0,0.23975081]
[1737978032728,0.202074,99027.0,99026.0,0.23975081]
[1737978033130,0.252074,99027.0,99026.0,0.23975081]
[1737978034243,0.202087,99021.0,99020.0,0.36363481]
[1737978034431,0.202087,99021.0,99020.0,0.36231481]
[1737978036534,0.21344747,99021.0,99020.0,0.36231481]
[1737978037437,0.21344747,99021.0,99020.0,0.36431481]
[1737978038235,0.21344747,99021.0,99012.0,0.3608]
[1737978038236,0.202089,99020.0,99012.0,0.3608]
[1737978038441,0.0712,99020.0,99002.0,0.3622]
[1737978038637,0.20212,99005.0,99002.0,0.3608]
[1737978039240,0.202111,99010.0,99002.0,0.3608]
[1737978039440,0.1383,99011.0,99002.0,0.3608]
[1737978039940,0.202118,99006.0,99002.0,0.3608]
[1737978041237,0.1383,99011.0,99002.0,0.3608]
[1737978041238,0.202109,99011.0,99004.0,0.202121]
[1737978041740,0.20211,99010.0,99003.0,0.074]
[1737978041944,0.20311,99010.0,99003.0,0.074]
[1737978042134,0.202112,99009.0,99003.0,0.074]
[1737978043237,0.2137519,99009.0,99003.0,0.074]
[1737978043739,0.2147519,99009.0,99003.0,0.074]
[1737978044138,0.2147519,99009.0,99003.0,0.076]
[1737978044735,0.001,99009.0,99006.0,0.202116]
[1737978044940,0.001,99009.0,99008.0,0.202113]
[1737978045739,0.09066792,99011.0,99010.0,0.202109]
[1737978046043,0.09066792,99011.0,99010.0,0.562909]
[1737978046638,0.01181805,99014.0,99010.0,0.562909]
[1737978046939,0.09066792,99018.0,99013.0,0.202102]
[1737978047132,0.001,99011.0,99010.0,0.562909]
[1737978047634,0.001,99011.0,99010.0,0.53260873]
[1737978048448,0.001,99011.0,99010.0,0.53460873]
[1737978049138,0.10347316,99018.0,99012.0,0.202104]
[1737978049644,0.10247316,99018.0,99013.0,0.202103]
[1737978050048,0.01180524,99018.0,99014.0,0.202101]
[1737978050238,0.202092,99019.0,99014.0,0.202101]
[1737978050435,0.001,99018.0,99014.0,0.202101]
[1737978050639,0.203093,99018.0,99014.0,0.202101]
[1737978050835,0.202095,99017.0,99014.0,0.202101]
[1737978051844,0.202095,99017.0,99014.0,0.204101]
[1737978052239,0.001,99018.0,99014.0,0.204101]
[1737978052443,0.001,99018.0,99015.0,0.202099]
[1737978052642,0.001,99017.0,99015.0,0.202099]
[1737978052849,0.001,99017.0,99016.0,0.202097]
[1737978053745,0.09066792,99023.0,99014.0,0.002]
[1737978053746,0.09066792,99023.0,99022.0,0.202085]
[1737978054047,0.09066792,99023.0,99022.0,0.562885]
[1737978054553,0.29275092,99023.0,99022.0,0.3608]
[1737978055240,0.29275092,99023.0,99022.0,0.001]
[1737978056248,0.09066792,99023.0,99009.0,0.3608]
[1737978056452,0.202109,99010.0,99009.0,0.3608]
[1737978057055,0.252109,99010.0,99009.0,0.3608]
[1737978060455,0.26360086,99010.0,99009.0,0.3608]
[1737978061059,0.06149186,99010.0,99009.0,0.3608]
[1737978061244,0.01149186,99010.0,99009.0,0.3608]
[1737978061555,0.202105,99012.0,99009.0,0.3608]
[1737978062356,0.12099377,99013.0,99009.0,0.3608]
[1737978062556,0.202109,99010.0,99009.0,0.3608]
[1737978064157,0.202109,99010.0,99009.0,0.3618]
[1737978064859,0.12099377,99013.0,99009.0,0.3608]
[1737978065056,0.12099377,99013.0,99009.0,0.56291]
[1737978065356,0.12099377,99013.0,99011.0,0.202107]
[1737978065558,0.12099377,99013.0,99012.0,0.0687]
[1737978068559,0.12099377,99013.0,99012.0,0.0697]
[1737978069761,0.01152929,99014.0,99012.0,0.0697]
[1737978069959,0.12099377,99016.0,99012.0,0.0697]
[1737978070259,0.03029905,99013.0,99012.0,0.001]
[1737978071158,0.03029905,99013.0,99009.0,0.36212]
[1737978071358,0.03029905,99013.0,99012.0,0.001]
[1737978071960,0.03029905,99013.0,99009.0,0.3608]
[1737978072155,0.03029905,99013.0,99012.0,0.001]
[1737978074161,0.03029905,99013.0,99009.0,0.3608]
[1737978075055,0.03029905,99013.0,99012.0,0.001]
[1737978075859,0.03029905,99013.0,99009.0,0.3608]
[1737978076362,0.23240205,99013.0,99009.0,0.3608]
[1737978076560,0.202109,99010.0,99009.0,0.3608]
[1737978077060,0.34291823,99010.0,99009.0,0.3608]
[1737978077865,0.29291823,99010.0,99009.0,0.3608]
[1737978078061,0.09080923,99010.0,99000.0,96.01953686]
[1737978078261,0.202115,99007.0,99006.0,0.3608]
[1737978082566,0.19329377,99009.0,99000.0,96.01961686]
[1737978082763,0.0682,99008.0,99000.0,96.01821686]
[1737978082959,0.202128,99001.0,99000.0,96.01821686]
[1737978084065,0.202128,99001.0,99000.0,96.01921686]
[1737978084666,0.202128,99001.0,99000.0,96.01821686]
[1737978084865,0.202128,99001.0,99000.0,96.01921686]
[1737978086458,0.21331554,99001.0,99000.0,96.01921686]
[1737978092768,0.01118754,99001.0,99000.0,96.01921686]
[1737978093064,0.35336121,99006.0,99000.0,96.01921686]
[1737978093268,0.20212,99005.0,99000.0,96.01921686]
[1737978094165,0.20212,99005.0,99000.0,96.01821686]
[1737978094365,0.20212,99005.0,99000.0,96.01921686]
[1737978096366,0.12116769,99001.0,99000.0,96.01921686]
[1737978097771,0.12116769,99001.0,99000.0,96.22134686]
[1737978098672,0.15124221,99009.0,99008.0,0.202113]
[1737978098867,0.15124221,99009.0,99008.0,0.562913]
[1737978099869,0.00015142,99030.0,99009.0,0.050527]
[1737978100172,0.00015142,99030.0,99024.0,0.3608]
[1737978100471,0.0412581,99027.0,99025.0,0.1415]
[1737978101076,0.0432581,99027.0,99026.0,0.202077]
[1737978101670,0.0462581,99027.0,99026.0,0.202077]
[1737978101863,0.0462581,99027.0,99025.0,0.1415]
[1737978102576,0.0452581,99027.0,99025.0,0.1415]
[1737978103168,0.0422581,99027.0,99025.0,0.1415]
[1737978103374,0.0452581,99027.0,99026.0,0.202077]
[1737978104279,0.0452581,99027.0,99025.0,0.1415]
[1737978104475,0.0422581,99027.0,99025.0,0.1415]
[1737978104674,0.09077255,99026.0,99025.0,0.1415]
[1737978105379,0.09077255,99026.0,99025.0,0.343579]
[1737978106779,0.202079,99025.0,99024.0,0.3608]
[1737978107476,0.09177255,99026.0,99024.0,0.3608]
[1737978107675,0.002,99026.0,99024.0,0.3608]
[1737978107879,0.003,99026.0,99024.0,0.3608]
[1737978108280,0.001,99026.0,99024.0,0.3608]
[1737978108483,0.001,99026.0,99022.0,0.3608]
[1737978108779,0.202079,99025.0,99022.0,0.3608]
[1737978110381,0.203079,99025.0,99022.0,0.3608]
[1737978110783,0.203079,99025.0,99015.0,0.202099]
[1737978110971,0.203079,99025.0,99022.0,0.3608]
[1737978111174,0.205079,99025.0,99022.0,0.3608]
[1737978111684,0.202083,99023.0,99022.0,0.3608]
[1737978112779,0.002,99025.0,99022.0,0.3608]
[1737978112971,0.001,99023.0,99022.0,0.3608]
[1737978113784,0.202081,99024.0,99022.0,0.3608]
[1737978114086,0.001,99025.0,99022.0,0.3608]
[1737978114277,0.001,99023.0,99022.0,0.562885]
[1737978114989,0.001,99023.0,99022.0,0.3608]
[1737978115179,0.001,99025.0,99022.0,0.3608]
[1737978115487,0.202081,99024.0,99022.0,0.3608]
[1737978116373,0.001,99023.0,99022.0,0.3608]
[1737978116578,0.002,99023.0,99022.0,0.3608]
[1737978117086,0.001,99023.0,99022.0,0.3608]
[1737978119287,0.002,99023.0,99022.0,0.3608]
[1737978120285,0.204083,99023.0,99022.0,0.3608]
[1737978121185,0.202107,99011.0,99010.0,0.3608]
[1737978121380,0.202101,99015.0,99010.0,0.3608]
[1737978121689,0.16372912,99020.0,99008.0,0.3608]
[1737978121879,0.202101,99014.0,99008.0,0.3608]
[1737978122483,0.05,99018.0,99008.0,0.3608]
[1737978122484,0.202095,99018.0,99008.0,0.3608]
[1737978122686,0.202098,99016.0,99008.0,0.3608]
[1737978122990,0.202099,99015.0,99008.0,0.3608]
[1737978123285,0.202093,99018.0,99008.0,0.3608]
[1737978123490,0.202102,99014.0,99008.0,0.3608]
[1737978124495,0.21277353,99020.0,99013.0,0.202103]
[1737978124689,0.01068353,99020.0,99009.0,0.1366]
[1737978124889,0.202095,99018.0,99009.0,0.338711]
[1737978125091,0.12475947,99020.0,99008.0,0.3608]
[1737978125690,0.202105,99013.0,99008.0,0.3608]
[1737978126086,0.12475947,99020.0,99008.0,0.3608]
[1737978126291,0.12575947,99020.0,99008.0,0.3608]
[1737978126491,0.202111,99010.0,99008.0,0.3608]
[1737978126885,0.202111,99010.0,99009.0,0.3608]
[1737978130483,0.0686,99017.0,99001.0,0.00132]
[1737978130686,0.202109,99010.0,99003.0,0.3608]
[1737978130900,0.202122,99004.0,99003.0,0.3608]
[1737978131581,0.21309636,99004.0,99003.0,0.3608]
[1737978132179,0.01097436,99004.0,99000.0,96.01961686]
[1737978132491,0.562928,99001.0,99000.0,96.01821686]
[1737978133677,0.562928,99001.0,99000.0,96.01921686]
[1737978135390,0.562928,99001.0,99000.0,95.98039849]
[1737978135695,0.562928,99001.0,99000.0,95.11348438]
[1737978136391,0.562928,99001.0,99000.0,95.01039653]
[1737978136594,0.562928,99001.0,99000.0,94.97839653]
[1737978136595,0.862928,99001.0,99000.0,94.97839653]
[1737978136892,0.912928,99001.0,99000.0,94.93522453]
[1737978137094,0.612928,99001.0,99000.0,94.93522453]
[1737978137787,0.912928,99001.0,99000.0,94.89530453]
[1737978138387,0.912928,99001.0,99000.0,94.88230453]
[1737978138992,0.562928,99001.0,99000.0,94.88230453]
[1737978154001,0.612928,99001.0,99000.0,94.88230453]
[1737978158217,0.612928,99001.0,99000.0,94.85923053]
[1737978158623,0.612928,99001.0,99000.0,94.50349543]
[1737978160409,0.6620803,99001.0,99000.0,94.50349543]
[1737978160610,0.6620803,99001.0,99000.0,94.46479543]
[1737978162820,0.6620803,99001.0,99000.0,94.42509743]
[1737978163724,0.6620803,99001.0,99000.0,94.40469743]
[1737978169229,0.6120803,99001.0,99000.0,94.40469743]
[1737978169831,0.70149694,99001.0,99000.0,94.40469743]
[1737978173124,0.6120803,99001.0,99000.0,94.40469743]
[1737978173428,0.4099523,99001.0,98983.0,0.1324]
[1737978173629,0.44273918,98993.0,98983.0,0.1324]
[1737978174333,0.3608,98993.0,98983.0,0.1324]
[1737978174630,0.3608,98993.0,98983.0,0.1334]
[1737978175331,0.3618,98993.0,98983.0,0.1334]
[1737978176133,0.44373918,98993.0,98983.0,0.1334]
[1737978177035,0.12115288,98989.0,98983.0,0.1334]
[1737978178428,0.12215288,98989.0,98983.0,0.1334]
[1737978179637,0.12215288,98989.0,98983.0,0.335564]
[1737978180135,0.12215288,98989.0,98984.0,0.202162]
[1737978180631,0.12215288,98989.0,98985.0,0.0611]
[1737978181133,0.12115288,98988.0,98985.0,0.0611]
[1737978182234,0.12215288,98988.0,98985.0,0.0611]
[1737978183429,0.12215288,98988.0,98985.0,0.0621]
[1737978185231,0.001,98988.0,98985.0,0.0621]
[1737978187037,0.001,98988.0,98987.0,0.00013833]
[1737978188228,0.001,98988.0,98987.0,0.00113833]
[1737978194445,0.12216991,98988.0,98987.0,0.00113833]
[1737978198243,0.32432391,98988.0,98987.0,0.00113833]
[1737978199847,0.203154,98988.0,98987.0,0.00113833]
[1737978200048,0.203154,98988.0,98971.0,0.17991083]
[1737978200049,0.050539,98986.0,98971.0,0.17991083]
[1737978200241,0.3608,98978.0,98971.0,0.17991083]
[1737978200447,0.562977,98978.0,98971.0,0.17991083]
[1737978200645,0.3608,98978.0,98971.0,0.17991083]
[1737978200847,0.202165,98983.0,98974.0,0.3608]
[1737978201039,0.202167,98982.0,98974.0,0.3608]
[1737978201244,0.202171,98980.0,98974.0,0.3608]
[1737978202049,0.202171,98980.0,98974.0,0.3618]
[1737978203051,0.202176,98978.0,98974.0,0.3618]
[1737978203238,0.0614,98987.0,98974.0,0.3618]
[1737978203443,0.08193918,98984.0,98974.0,0.3618]
[1737978203651,0.202181,98975.0,98974.0,0.3618]
[1737978204055,0.202181,98975.0,98974.0,0.3608]
[1737978204551,0.29306307,98975.0,98974.0,0.3608]
[1737978205139,0.202203,98964.0,98963.0,0.54071083]
[1737978206755,0.21283023,98964.0,98963.0,0.54071083]
[1737978207858,0.202203,98964.0,98963.0,0.54071083]
[1737978208760,0.202203,98964.0,98963.0,0.3608]
[1737978208949,0.08209069,98973.0,98963.0,0.3608]
[1737978209253,0.00015151,98973.0,98963.0,0.3608]
[1737978209450,0.202196,98968.0,98964.0,0.0616]
[1737978209646,0.202187,98972.0,98964.0,0.0616]
[1737978209852,0.01051692,98973.0,98964.0,0.0616]
[1737978210054,0.202193,98969.0,98964.0,0.0616]
[1737978210352,0.00015151,98973.0,98964.0,0.0616]
[1737978210556,0.00015151,98973.0,98967.0,0.202196]
[1737978210855,0.00015151,98973.0,98968.0,0.202195]
[1737978212150,0.00015151,98973.0,98964.0,0.263802]
[1737978212352,0.00015151,98973.0,98964.0,0.0616]
[1737978212553,0.00015151,98973.0,98966.0,0.202198]
[1737978213254,0.00015151,98973.0,98964.0,0.0616]
[1737978213446,0.00015151,98973.0,98967.0,0.202197]
[1737978213646,0.00115151,98973.0,98970.0,0.202189]
[1737978214351,0.00015151,98973.0,98970.0,0.202189]
[1737978214749,0.00015151,98973.0,98964.0,0.0616]
[1737978214951,0.00015151,98973.0,98968.0,0.202194]
[1737978215147,0.00015151,98973.0,98964.0,0.0616]
[1737978215360,0.202194,98969.0,98964.0,0.0616]
[1737978216955,0.202194,98969.0,98964.0,0.24151083]
[1737978218561,0.00015151,98973.0,98964.0,0.24151083]
[1737978218863,0.202195,98968.0,98964.0,0.24151083]
[1737978221461,0.202195,98968.0,98964.0,0.0616]
[1737978224459,0.01092154,98973.0,98964.0,0.0616]
[1737978224661,0.202199,98966.0,98963.0,0.36216]
[1737978224853,0.202199,98966.0,98963.0,0.3608]
[1737978225250,0.13575639,98973.0,98963.0,0.3608]
[1737978225456,0.202203,98964.0,98963.0,0.54071083]
[1737978225760,0.202203,98964.0,98963.0,0.17991083]
[1737978226354,0.563003,98964.0,98963.0,0.17991083]
[1737978230258,0.613003,98964.0,98963.0,0.17991083]
[1737978230459,0.202207,98962.0,98961.0,0.00151571]
[1737978232170,0.1231,98963.0,98940.0,0.0651]
[1737978232476,0.202252,98940.0,98939.0,0.17991083]
[1737978232769,0.202252,98940.0,98939.0,0.54071083]
[1737978233870,0.203252,98940.0,98939.0,0.54071083]
[1737978234074,0.21399608,98940.0,98939.0,0.54071083]
[1737978234970,0.21399608,98940.0,98939.0,0.3608]
[1737978235662,0.001,98940.0,98939.0,0.3608]
[1737978241781,0.001,98940.0,98939.0,0.563054]
[1737978243280,0.001,98940.0,98939.0,0.57368454]
[1737978246476,0.00015159,98949.0,98939.0,0.37143054]
[1737978246671,0.00015159,98949.0,98948.0,0.563036]
[1737978251573,0.15112809,98965.0,98964.0,0.202203]
[1737978251773,0.15112809,98965.0,98964.0,0.563003]
[1737978252878,0.15212809,98965.0,98964.0,0.563003]
[1737978253178,0.15312809,98965.0,98964.0,0.563003]
[1737978253584,0.15312809,98965.0,98964.0,0.923803]
[1737978254083,0.00015159,98974.0,98964.0,0.7216]
[1737978254282,0.18145692,98978.0,98977.0,0.202177]
[1737978254980,0.18145692,98978.0,98977.0,0.327177]
[1737978255684,0.14962483,98987.0,98977.0,0.327177]
[1737978255685,0.14962483,98987.0,98986.0,0.202158]
[1737978255884,0.14962483,98987.0,98986.0,0.562958]
[1737978256881,0.15462483,98987.0,98986.0,0.562958]
[1737978259391,0.15462483,98987.0,98986.0,0.57317037]
[1737978260184,0.00515159,98987.0,98986.0,0.57317037]
[1737978261593,0.00515159,98987.0,98986.0,0.562958]
[1737978262892,0.00515159,98987.0,98986.0,0.923758]
[1737978263589,0.20730759,98987.0,98986.0,0.923758]
[1737978263795,0.00515159,98987.0,98986.0,0.923758]
[1737978270300,0.00515159,98987.0,98986.0,0.923758]
[1737978270796,0.00679,98990.0,98986.0,0.923758]
[1737978270797,0.1273,99002.0,99001.0,0.202128]
[1737978270995,0.1273,99002.0,99001.0,0.562928]
[1737978272001,0.1313,99002.0,99001.0,0.562928]
[1737978273196,0.1393,99002.0,99001.0,0.562928]
[1737978275890,0.14991301,99002.0,98986.0,0.00136]
[1737978276096,0.202148,98992.0,98983.0,0.202164]
[1737978276292,0.0653,98991.0,98987.0,0.3608]
[1737978276493,0.0653,98991.0,98989.0,0.202151]
[1737978276895,0.0653,98991.0,98987.0,0.3608]
[1737978277194,0.267448,98991.0,98987.0,0.3608]
[1737978277802,0.271448,98991.0,98987.0,0.3608]
[1737978278203,0.28173425,98991.0,98987.0,0.3608]
[1737978278504,0.0693,98991.0,98987.0,0.3608]
[1737978278999,0.0713,98991.0,98987.0,0.3608]
[1737978279389,0.0673,98991.0,98987.0,0.3608]
[1737978279590,0.006,98991.0,98990.0,0.20215]
[1737978280900,0.006,98991.0,98990.0,0.56295]
[1737978281905,0.006,98991.0,98990.0,0.57321862]
[1737978287112,0.006,98991.0,98990.0,0.93401862]
[1737978295500,0.002,115670.0,98990.0,0.93401862]
[1737978295701,0.202071,99029.0,99028.0,0.3608]
[1737978297308,0.211071,99029.0,99028.0,0.3608]
[1737978298310,0.22120363,99029.0,99028.0,0.3608]
[1737978298514,0.22820363,99029.0,99028.0,0.3608]
[1737978299004,0.27734346,99029.0,99028.0,0.17881817]
[1737978300205,0.27734346,99029.0,99028.0,0.14791818]
[1737978300409,0.050518,99028.0,99000.0,0.20213]
[1737978300612,0.12494666,99004.0,98998.0,0.3608]
[1737978300912,0.1864,99003.0,98998.0,0.3608]
[1737978302217,0.202132,98999.0,98998.0,0.3608]
[1737978302411,0.202132,98999.0,98991.0,0.00015151]
[1737978302412,0.19697246,99003.0,98991.0,0.00015151]
[1737978302713,0.202167,98982.0,98981.0,0.0015154]
[1737978302915,0.202169,98981.0,98980.0,0.17991083]
[1737978303103,0.202169,98981.0,98980.0,0.16721439]
[1737978303312,0.862969,98981.0,98980.0,0.02381804]
[1737978303610,0.202179,98976.0,98964.0,0.3608]
[1737978303811,0.202179,98976.0,98971.0,0.00015151]
[1737978304313,0.202179,98976.0,98975.0,0.23651267]
[1737978304518,0.21249676,98976.0,98975.0,5.267e-05]
[1737978304716,0.21649676,98976.0,98975.0,5.267e-05]
[1737978305117,0.202187,98972.0,98971.0,0.00015151]
[1737978306411,0.204187,98972.0,98971.0,0.00015151]
[1737978308023,0.205187,98972.0,98971.0,0.00015151]
[1737978308635,0.565987,98972.0,98971.0,1e-08]
[1737978308916,0.20223,98951.0,98950.0,94.40469743]
[1737978310118,0.20223,98951.0,98950.0,94.40669743]
[1737978310814,0.56303,98951.0,98950.0,94.40669743]
[1737978311014,0.57356072,98951.0,98950.0,94.40669743]
[1737978311317,0.57356072,98951.0,98950.0,94.40769743]
[1737978313325,0.8351375,98951.0,98950.0,94.40769743]
[1737978315823,0.23822869,98957.0,98950.0,94.40769743]
[1737978316018,0.16613356,98989.0,98964.0,0.202203]
[1737978316219,0.24280727,98984.0,98979.0,0.12494666]
[1737978316427,0.24280727,98984.0,98977.0,0.562976]
[1737978316617,0.3608,99009.0,98983.0,0.3608]
[1737978316824,0.202108,99011.0,98993.0,0.562944]
[1737978317023,0.202108,99011.0,99001.0,0.3608]
[1737978317327,0.202112,99009.0,99001.0,0.3608]
[1737978317524,0.12494666,99011.0,99001.0,0.3608]
[1737978317722,0.202116,99007.0,99001.0,0.3608]
[1737978318526,0.202123,99004.0,99001.0,0.3608]
[1737978318731,0.14094666,99011.0,99001.0,0.3608]
[1737978318923,0.202121,99005.0,99001.0,0.3608]
[1737978319723,0.202126,99002.0,99001.0,0.3608]
[1737978321219,0.211126,99002.0,99001.0,0.3608]
[1737978322124,0.02353667,99002.0,98993.0,0.3608]
[1737978322319,0.202142,98994.0,98993.0,0.3608]
[1737978322634,0.02353667,99002.0,98992.0,0.00015151]
[1737978322635,0.202144,98993.0,98992.0,0.00015151]
[1737978322837,0.562944,98993.0,98992.0,0.00015151]
[1737978323030,0.562944,98993.0,98992.0,1e-08]
[1737978323231,0.202171,98980.0,98979.0,0.29922982]
[1737978324023,0.202171,98980.0,98969.0,0.059]
[1737978324024,0.202175,98978.0,98972.0,0.29922982]
[1737978325334,0.206175,98978.0,98972.0,0.29922982]
[1737978325832,0.208175,98978.0,98972.0,0.29922982]
[1737978326222,0.2182662,98978.0,98972.0,0.29922982]
[1737978327128,0.0160912,98978.0,98976.0,0.3608]
[1737978327433,0.0120912,98978.0,98976.0,0.3608]
[1737978327632,0.006,98978.0,98976.0,0.3608]
[1737978328028,0.12085376,98982.0,98981.0,0.202169]
[1737978328334,0.00015151,98987.0,98984.0,0.202161]
[1737978328630,0.00015151,98987.0,98986.0,0.3608]
[1737978328830,0.00015151,98987.0,98986.0,0.562958]
[1737978329036,0.00015151,98987.0,98986.0,0.3608]
[1737978331035,0.00315151,98987.0,98986.0,0.3608]
[1737978331832,0.00215151,98987.0,98986.0,0.3608]
[1737978333334,0.00215151,98987.0,98986.0,0.562958]
[1737978334541,0.00215151,98987.0,98986.0,0.3608]
[1737978335927,0.20430751,98987.0,98986.0,0.3608]
[1737978339241,0.00215151,98987.0,98986.0,0.3608]
[1737978339737,0.00215151,98987.0,98986.0,0.562958]
[1737978344646,0.202124,99003.0,98997.0,0.202135]
[1737978344835,0.202124,99003.0,99002.0,0.3608]
[1737978346544,0.003,99003.0,99002.0,0.3608]
[1737978347138,0.007,99003.0,99002.0,0.3608]
[1737978347335,0.01,99003.0,99002.0,0.562926]
[1737978347540,0.00015151,99012.0,99002.0,0.7216]
[1737978347741,0.00015151,99012.0,99011.0,0.562907]
[1737978349751,0.00415151,99012.0,99011.0,0.562907]
[1737978349937,0.01315151,99012.0,99011.0,0.562907]
[1737978350435,0.01315151,99012.0,99011.0,0.3608]
[1737978350946,0.21525651,99012.0,99011.0,0.3608]
[1737978351140,0.21525651,99012.0,99002.0,0.37593806]
[1737978351141,0.20212,99006.0,99002.0,0.36312]
[1737978351444,0.20212,99005.0,99002.0,0.3608]
[1737978351643,0.0634,99011.0,99003.0,0.202124]
[1737978351844,0.265509,99011.0,99005.0,0.202119]
[1737978352147,0.20211,99010.0,99005.0,0.202119]
[1737978352646,0.0634,99011.0,99005.0,0.202119]
[1737978352850,0.003,99006.0,99005.0,0.202119]
[1737978353539,0.0634,99011.0,99005.0,0.202119]
[1737978353746,0.004,99010.0,99005.0,0.202119]
[1737978354047,0.007,99006.0,99005.0,0.202119]
[1737978354441,0.003,99006.0,99005.0,0.202119]
[1737978354651,0.01,99006.0,99005.0,0.203119]
[1737978358454,0.01,99006.0,99005.0,0.001]
[1737978358748,0.212118,99006.0,99005.0,0.001]
[1737978358954,0.01,99006.0,98993.0,0.00015151]
[1737978359254,0.202142,98994.0,98993.0,0.00015151]
[1737978359649,0.01,99006.0,98993.0,0.00015151]
[1737978359855,0.202134,98998.0,98993.0,0.00015151]
[1737978360456,0.202134,98998.0,98993.0,0.00115151]
[1737978360656,0.01,99006.0,99005.0,0.20212]
[1737978360954,0.01,99006.0,99005.0,0.56292]
[1737978361147,0.007,99006.0,99005.0,0.56292]
[1737978361348,0.01309595,99015.0,99009.0,0.20211]
[1737978361548,0.01309595,99015.0,99005.0,0.3608]
[1737978361755,0.01309595,99015.0,99010.0,0.202109]
[1737978361963,0.01309595,99015.0,99011.0,0.202107]
[1737978362158,0.00015151,99012.0,99011.0,0.202107]
[1737978363956,0.00915151,99012.0,99011.0,0.203107]
[1737978364559,0.01315151,99012.0,99011.0,0.203107]
[1737978365857,0.01315151,99012.0,99011.0,0.563907]
[1737978366354,0.21525651,99012.0,99011.0,0.3618]
[1737978366561,0.21525651,99012.0,99011.0,0.001]
[1737978368554,0.01315151,99012.0,98993.0,0.36095151]
[1737978368749,0.202142,98994.0,98993.0,0.36095151]
[1737978368954,0.202142,98994.0,98993.0,0.00015151]
[1737978370163,0.205142,98994.0,98993.0,0.00015151]
[1737978370756,0.207142,98994.0,98993.0,0.00015151]
[1737978370953,0.22005209,98994.0,98993.0,0.00015151]
[1737978371659,0.01791009,98994.0,98993.0,0.00015151]
[1737978371858,0.005,98994.0,98993.0,0.56309551]
[1737978378262,0.202111,99010.0,99009.0,0.202108]
[1737978378465,0.202099,99016.0,99011.0,0.202107]
[1737978378650,0.16346921,99020.0,99011.0,0.202107]
[1737978379055,0.202097,99017.0,99011.0,0.202107]
[1737978380065,0.16346921,99020.0,99011.0,0.202107]
[1737978380366,0.01315151,99012.0,99011.0,0.203107]
[1737978380561,0.01315151,99012.0,99011.0,0.266107]
[1737978383570,0.15106721,99029.0,99025.0,0.202079]
[1737978383756,0.15106721,99029.0,99028.0,0.202073]
[1737978384961,0.16006721,99029.0,99028.0,0.203073]
[1737978385163,0.17256385,99029.0,99028.0,0.203073]
[1737978385566,0.02749664,99029.0,99028.0,0.203073]